Cogmind - Beta 9.4 *** ADVENTURER MODE // 2020.02.04 @ 15:33:19 Player: lcbb_tuk Result: Smashed by cave-in Performance ------------- Evolutions (0) 0 Regions Visited (1) 200 Robots Destroyed (18) 90 Value Destroyed (631) 631 Prototype IDs (1) 20 Alien Tech Used (0) 0 Bonus (0) 0 TOTAL SCORE: 941 Bonus ------- None Cogmind --------- Core Integrity 0/250 Matter 290/300 Energy 248/250 System Corruption 0% Temperature Cool (2) Movement Flying (32) Location -10/Materials Parts ------- > --- POWER (1) -------- Ion Engine > --- PROPULSION (2) --- Improved Flight Unit Improved Flight Unit > --- UTILITY (2) ------ Structural Scanner Targeting Computer > --- WEAPON (2) ------- Hammer Hammer > --- INVENTORY (4) ---- Ion Engine Light Ion Engine Improved Flight Unit Improved Flight Unit Peak State ------------ > --- POWER ------------ Light Nuclear Core > --- PROPULSION ------- Improved Flight Unit Improved Flight Unit > --- UTILITY ---------- Structural Scanner Targeting Computer > --- WEAPON ----------- Hammer Hammer > --- INVENTORY -------- Ion Engine Light Ion Engine Improved Flight Unit Improved Flight Unit [Rating: 13] Favorites ----------- Power Light Ion Engine Engine Light Ion Engine Power Core Light Nuclear Core Propulsion Improved Flight Unit Leg Aluminum Leg Wheel Compact Wheel Flight Unit Improved Flight Unit Utility Structural Scanner Device Structural Scanner Processor Targeting Computer Weapon Hammer Energy Gun Small Laser Ballistic Gun Assault Rifle Impact Weapon Hammer Build | -11 -10 ------- Run | Scr Mat Slots Evolved . | . . Power . | . . Propulsion . | . . Utility . | . . Weapon . | . . Parts Attached 23 | 6 17 Power 5 | 1 4 Engine 4 | 1 3 Core 1 | . 1 Reactor . | . . Propulsion 6 | 2 4 Treads . | . . Leg 2 | . 2 Wheel 2 | 2 . Hover . | . . Flight 2 | . 2 Utility 4 | . 4 Device 3 | . 3 Storage . | . . Processor 1 | . 1 Hackware . | . . Protection . | . . Artifact . | . . Weapon 8 | 3 5 Energy Gun 4 | 2 2 Energy Cannon . | . . Ballistic Gun 2 | 1 1 Ballistic Cannon . | . . Launcher . | . . Special Weapon . | . . Impact Weapon 2 | . 2 Slashing Weapon . | . . Piercing Weapon . | . . Special Melee Weapon . | . . Unidentified Prototypes 1 | . 1 Parts Lost 6 | . 6 Power 1 | . 1 Propulsion . | . . Utility . | . . Weapon 5 | . 5 Highest Loss Streak 1 | . 1 Average Slot Usage (%) 92 | . 92 Engine 10 | . 10 Core 2 | . 2 Leg 2 | . 2 Wheel 7 | . 7 Flight 17 | . 17 Device 14 | . 14 Processor 10 | . 10 Energy Gun 4 | . 4 Ballistic Gun 3 | . 3 Impact Weapon 16 | . 16 Naked Turns . | . . Heaviest Build 10 | 6 10 Greatest Support 32 | 32 32 Greatest Overweight (x) 3 | . 3 Average Overweight (x) . | . . Largest Inventory Capacity 4 | 4 4 Average Capacity 4 | 4 4 Most Carried 4 | 2 4 Average Carried 2 | 1 2 Final Capacity 4 | 4 4 Final Carried 4 | 2 4 Class Distribution -------------------- 62% | Sprinter 33% | Mutant 3% | Scavenger-Mutant Dominant Class ---------------- Sprinter | -10/Materials Resources | -11 -10 ----------- Run | Scr Mat Matter Collected 503 | 142 361 Remotely . | . . Salvage Created 774 | . 774 Parts 40 | . 40 Haulers Intercepted 1 | . 1 Recyclers Shooed 1 | . 1 Parts Field Recycled . | . . Retrieved Matter . | . . Parts Self-Destructed . | . . Prevented . | . . Kills | -11 -10 ------- Run | Scr Mat Combat Hostiles Destroyed 16 | . 16 Melee 4 | . 4 Guns 12 | . 12 Classes Destroyed 3 | . 3 Hauler 1 | . 1 Watcher 1 | . 1 Grunt 16 | . 16 Best Kill Streak 3 | . 3 Combat Bots Only 3 | . 3 Max Kills in Single Turn 1 | . 1 Gunslinging . | . . Exploded . | . . Melee 1 | . 1 Uniques/NPCs Destroyed . | . . Combat | -11 -10 -------- Run | Scr Mat Damage Taken 782 | . 782 Core 261 | . 261 Absorbed by Shields . | . . Core Remaining (%) 100 | 100 . Volleys Fired 62 | . 62 Largest 2 | . 2 Hottest 80 | . 80 Shots Fired 85 | . 85 Gun 85 | . 85 Cannon . | . . Launcher . | . . Special . | . . Kinetic 39 | . 39 Thermal 46 | . 46 Explosive . | . . Electromagnetic . | . . Robot Hit Streak 15 | . 15 Robot Miss Streak 1 | . 1 Penetration Max . | . . Secondary Targets . | . . Shots Hit Robots 96 | . 96 Core Hits 36 | . 36 Critical Hits 1 | . 1 Critical Kills . | . . Critical Parts Destroyed 1 | . 1 Melee Attacks 252 | . 252 Impact 252 | . 252 Slashing . | . . Piercing . | . . Sneak Attacks 3 | . 3 Combat Hostiles 1 | . 1 Follow-up Attacks 3 | . 3 Damage Inflicted 1297 | . 1297 Guns 840 | . 840 Cannons . | . . Explosions . | . . Melee 454 | . 454 Ramming 3 | . 3 Kinetic 441 | . 441 Thermal 399 | . 399 Explosive . | . . Electromagnetic . | . . Impact 454 | . 454 Slashing . | . . Piercing . | . . Highest Corruption . | . . Average Corruption . | . . Corruption Purged . | . . Overload Shots . | . . Overflow Damage 4 | . 4 Projectiles . | . . Explosions . | . . Melee 4 | . 4 Knockbacks 3 | . 3 Impact 3 | . 3 Kinetic . | . . Secondary . | . . Self-Inflicted Damage 1 | . 1 Shots . | . . Rammed 1 | . 1 Targets Rammed 1 | . 1 Kicked . | . . Crushed . | . . Highest Temperature 219 | . 219 Average Temperature 60 | . 60 Received Heat Transfer 522 | . 522 Siege Activations . | . . Robots Corrupted . | . . Combat Hostiles . | . . Parts Fried . | . . Impact Corruptions 1 | . 1 Robots Melted . | . . Combat Hostiles . | . . Parts Melted . | . . Heat Transferred 900 | . 900 Parts Sabotaged . | . . Parts Stolen . | . . Parts Stripped . | . . Power Chain Reactions . | . . Missiles Intercepted . | . . Alert | -11 -10 ------- Run | Scr Mat Peak Influence 339 | . 339 Average Influence 177 | . 184 Maximum Alert Level 1 | . 1 Low Security (%) 63 | 100 62 Level 1 36 | . 37 Level 2 . | . . Level 3 . | . . Level 4 . | . . Level 5 . | . . High Security . | . . Max Security . | . . Squads Dispatched 4 | . 4 Investigation 4 | . 4 Extermination . | . . Reinforcement . | . . Assault . | . . Garrison . | . . Intercept . | . . Construction Impeded . | . . Haulers Reinforced . | . . Stealth | -11 -10 --------- Run | Scr Mat Distress Signals . | . . Communications Jammed . | . . Distress Signals . | . . Times Spotted 32 | . 32 Peak Tracking Total 5 | . 5 Tactical Retreats 4 | . 4 Traps | -11 -10 ------- Run | Scr Mat Traps Triggered 1 | . 1 Indirectly . | . . Trap Hack Attempts . | . . Triggered . | . . Disarmed 7 | . 7 Reprogrammed . | . . Reused . | . . Traps Extracted . | . . Installed . | . . Triggered . | . . Machines | -11 -10 ---------- Run | Scr Mat Machines Disabled 5 | . 5 Max in Single Turn 1 | . 1 Machines Sabotaged . | . . Garrisons Compromised . | . . Overloaded Fab Kills . | . . Fab Network Shutdowns . | . . Hacking | -11 -10 --------- Run | Scr Mat Machines Accessed 4 | . 4 Terminals 3 | . 3 Fabricators . | . . Repair Stations . | . . Recycling Units 1 | . 1 Scanalyzers . | . . Garrison Access . | . . Total Hacks 23 | . 23 Successful 20 | . 20 Failed 3 | . 3 Catastrophic . | . . Database Lockouts . | . . Manual . | . . Terminals 18 | . 18 Fabricators . | . . Repair Stations . | . . Recycling Units 5 | . 5 Scanalyzers . | . . Garrison Access . | . . Terminal Hacks 15 | . 15 Record 5 | . 5 Emergency Access Points 1 | . 1 Alert Level 2 | . 2 Locate Traps 1 | . 1 Disarm Traps 3 | . 3 Maintenance Status 1 | . 1 Investigation Status 1 | . 1 Hauler Manifests 1 | . 1 Fabricator Hacks . | . . Repair Station Hacks . | . . Recycling Unit Hacks 5 | . 5 Retrieve Matter 3 | . 3 Retrieve Components 2 | . 2 Scanalyzer . | . . Garrison Access Hacks . | . . Unauthorized Hacks . | . . Terminals . | . . Fabricators . | . . Repair Stations . | . . Recycling Units . | . . Scanalyzers . | . . Garrison Access . | . . Data Cores Recovered . | . . Used . | . . Hacking Detections 4 | . 4 Full Trace Events 4 | . 4 Feedback Events . | . . Feedback Blocked . | . . Robot Schematics Acquired . | . . Robots Built . | . . Matter . | . . Time . | . . Total Robot Build Rating . | . . Part Schematics Acquired . | . . Parts Built . | . . Matter . | . . Time . | . . Total Part Build Rating . | . . Parts Repaired . | . . Time . | . . Parts Recycled . | . . Recycled Matter . | . . Retrieved Matter . | . . Retrieved Components 9 | . 9 Parts Scanalyzed . | . . Part Schematics Acquired . | . . Parts Damaged . | . . Bothacking | -11 -10 ------------ Run | Scr Mat Used RIF Installer . | . . Robots Hacked . | . . Non-combat . | . . Combat . | . . Robot Hacks Applied . | . . Relay Couplers Released . | . . Robots Rewired . | . . Allies Hacked . | . . Hacks Repelled . | . . Allies | -11 -10 -------- Run | Scr Mat Total Allies . | . . Largest Group . | . . Highest-Rated Group . | . . Highest-Rated Ally . | . . Total Orders . | . . Ally Attacks . | . . Total Damage . | . . Kills . | . . Allies Corrupted . | . . Allies Melted . | . . Intel | -11 -10 ------- Run | Scr Mat Robot Analysis Total . | . . Derelict Logs Recovered . | . . Drone Launches . | . . Drone Recoveries . | . . Exploration | -11 -10 ------------- Run | Scr Mat Turns Passed 1218 | 43 1175 Spaces Moved 660 | 35 625 Core 7 | 5 2 Treads . | . . Legs 40 | . 40 Wheels 209 | 30 179 Hover . | . . Flight 404 | . 404 Fastest Speed 32 | 50 32 Average Speed 59 | 92 57 Slowest Speed 200 | 100 200 Overloaded Moves . | . . Propulsion Burnouts . | . . Robots Hopped 2 | . 2 Cave-ins Triggered 1 | . 1 Exploration Rate (%) 38 | 3 74 Regions Visited 1 Branch Regions . Pre-discovered Areas . | . . Known Exits Taken . | . . Unknown Exits Taken 1 | 1 . Scrap Searched . | . . Spaces Dug 51 | . 51 Terrain Destroyed 51 | . 51 Melee 51 | . 51 Projectile . | . . AOE . | . . Actions | -11 -10 --------- Run | Scr Mat Total 1060 | 43 1017 Wait 83 | . 83 Move 654 | 34 620 Hop 2 | . 2 Pick Up 9 | 2 7 Fast Attach 15 | 5 10 Attach 4 | 1 3 Detach 2 | 1 1 Swap 4 | . 4 Drop 9 | . 9 Fire 62 | . 62 Melee 215 | . 215 Ram . | . . Kick 1 | . 1 Crush . | . . Escape Stasis . | . . Rewire . | . . Trap . | . . Miscellaneous . | . . Route ------- -11/Scrapyard -10/Materials (discovered 2 exits: [*Mat] / [*Min]) History --------- Turn | Location | Event 16 | -11/Scrapyard | Discovered new exit (range 16) 44 | -11/Scrapyard | Entered Materials 266 | -10/Materials | Discovered new exit (range 14) 324 | -10/Materials | Build established: Mutant 540 | -10/Materials | Core integrity fell below 50% 629 | -10/Materials | Core integrity fell below 20% 748 | -10/Materials | Build established: Sprinter 925 | -10/Materials | Discovered new exit (range 5) 1219 | -10/Materials | Crushed by falling debris 1219 | -10/Materials | Smashed by cave-in Last Messages --------------- Acquired 4 matter. K-01 Serf collects debris. Processing Tank disabled. G-34 Mercenary knocked back. U-05 Engineer builds a Wall. [Achievement: Part-time Excavator] U-05 Engineer builds a Wall. Electrolysis Chamber disabled. K-01 Serf collects debris. U-05 Engineer builds a Wall. K-01 Serf collects debris. U-05 Engineer builds a Wall. EXIT=FOUND Machine disabled. U-05 Engineer builds a Wall. Sneak attack on A-02 Transporter. A-02 Transporter destroyed. U-05 Engineer builds a Wall. The unstable cave ceiling collapses. Crushed by falling debris. Map ----- +----------------------------------------------------+ | | | | | | | | | | | | | | | | | | | | | | | | | | | | | | | | | | | | | ????????????????????????????????????????? | | ????????????########????????????????????? | | ??????####### !#????????????????????? | | ??????# # """ #????????????????????? | | ####### # """ #????????????????????? | | !%!= + """ #????????????????????? | | !!! ### # ##################???? | | = #?# # ! # @ #???? | | #?############################# #???? | | #####?????????###?????????????????# #???? | | ??????????????????????????????????# #???? | | ??????????????????????????????????# #???? | | ??????????????????????????????????# #???? | | ??????????????????????????????????# #???? | | ??????????????????????????????????# #???? | | ???? ???????????????????????????# #???? | | ???? ???????????????????????????# #???? | | #### ???????????????????????????# #???? | | #?????????????????????######"#???? | | #?????????????????????#! ] #???? | | #?????????????????????# #???? | | +?????????????????????# #???? | | #?????????????????????# #???? | | " #?????????????????????# #???? | | ##????????????????????# #???? | | #??########??????????####+###???? | | #??#==== #???????????# #???? | | // #??#==== #???????????# #???? | | ?/ #??# == ######??????# #???? | | ??? ???### = ## ######## #???? | | #####+#####??# # #???? | | #??# ##### ##### ### ###???? | +----------------------------------------------------+ Best States ------------- Heat Dissipation 39 Energy Generation 14 Energy Capacity 250 Matter Stores 300 Matter Capacity 300 Sight Range 16 Terrain Scan Density 10 Resistance: KI 20 Resistance: TH 20 Resistance: EX 20 Resistance: EM 20 Resistance: I 20 Resistance: S 20 Resistance: P 20 Evasion (%) 63 Targeting Accuracy 5 Offensive Hacking 10 Item Schematics ----------------- None Robot Schematics ------------------ None Fabricated ------------ Nothing Alien Tech Used ----------------- None Achievements -------------- Part-time Excavator Challenges ------------ None Game ------ Seed CoreBombMatter Manual? 0 Play Time 00:17:55 Cumulative 12.6 hours Start 2020.02.04 @ 15:18:55 End 2020.02.04 @ 15:33:19 Sessions 1 Manual Loads 0 Difficulty Adventurer Special Mode None Game No. 18 Rogue 0 Adventurer 18 Explorer 0 Win Type - Total 0 Types 0/0/0/0/0/0/0 Lore% 18 Gallery% 18 Achievement% 16 Wizard Run 0 Options --------- ASCII 0 Keyboard 1 Movement Numpad Keybinds 0 Fullscreen 1 Font 12/Fuzzy Map View 83x54 Tactical HUD 0 Map Filters NONE Filters NONE Steam 1 RUN: 777ca8f1-eb3b-4f38-82d9-55800565e11c